{"text_format":"1","workbook":"xlsx","n_sheets":1,"sheets":["CATÁLOGO DOPI (2)"],"not_rendered":{"charts":0,"images":2,"macros":1,"external_links":2,"defined_names":135,"comments":0,"pivot_tables":0},"unopened":[],"bounds":{"document_bytes":16777216,"sheet_cells":100000,"rows_first":2000,"rows_last":500,"rows_between":2000,"halvings":0,"cell_chars":16384,"cell_head_chars":4096},"cells_cut":0,"cells_raw":0,"read":"whole","date_system":"1900"}

{"sheet":"CATÁLOGO DOPI (2)","index":0,"n_rows":121,"n_cols":7,"rows_kept":121,"cut":false,"hidden":false,"merged":[[0,2,0,5],[1,2,4,5],[6,1,8,1],[9,2,9,5],[10,1,11,1],[10,2,11,5],[10,6,11,6],[13,0,13,6],[16,0,16,6],[118,0,118,4],[119,0,120,4]]}
[null,"MUNICIPIO DE ZAPOPAN, JALISCO","LICITACIÓN PÚBLICA No."]
[null,"DIRECCIÓN DE CONSERVACION DE INMUEBLES"]
[null,"UNIDAD DE PRESUPUESTOS Y CONTRATACION DE OBRA PUBLICA"]
[]
[]
[null,"DESCRIPCIÓN GENERAL DE LOS TRABAJOS:",null,null,"FECHA DE INICIO:"]
[null,"Estructura con lonaria en el Centro de Autismo ubicado en Av. Laureles No. 777, colonia Estatuto Jurídico Fovissste y obras complementarias, municipio de Zapopan, Jalisco.",null,null,"FECHA DE TERMINACIÓN:"]
[null,null,null,null,"PLAZO DE EJECUCIÓN:"]
[null,null,null,null,"FECHA DE PRESENTACIÓN:"]
[null,"RAZÓN SOCIAL DEL LICITANTE:","NOMBRE, CARGO Y FIRMA DEL LICITANTE",null,null,null,"DOCUMENTO"]
[null,null,null,null,null,null,"PE1"]
[]
[]
["CATÁLOGO DE CONCEPTOS"]
[]
["CLAVE","DESCRIPCIÓN ","UNIDAD","CANTIDAD","PRECIO UNITARIO ($)","PRECIO UNITARIO ($) CON LETRA","IMPORTE ($) M. N."]
[]
["A","LONARIA EN AL AREA DE CANCHAS",null,null,null,null,{"$f":"G19+G22+G35+G45+G51+G54","v":0}]
["A.1","DEMOLICIÓN ",null,null,null,null,{"$f":"SUM(G20:G21)","v":0}]
["DOPI-001","DEMOLICIÓN DE CONCRETO SIMPLE EN BANQUETAS, POR MEDIOS MECÁNICOS, INCLUYE: ACARREO DEL MATERIAL A BANCO DE OBRA PARA SU POSTERIOR RETIRO Y LIMPIEZA DEL ÁREA DE LOS TRABAJOS, MANO DE OBRA, EQUIPO Y HERRAMIENTA.","M3",11.09,null,{"$f":"Enletras(E20)","v":" Pesos   0 0/100 M.N"},{"$f":"ROUND((E20*D20),2)","v":0}]
["DOPI-002","EXCAVACIÓN POR MEDIOS MECÁNICOS EN MATERIAL TIPO II, DE 0.00 A -2.00 M DE PROFUNDIDAD, INCLUYE: ACARREO DEL MATERIAL A BANCO DE OBRA PARA SU POSTERIOR RETIRO, MANO DE OBRA, EQUIPO Y HERRAMIENTA. (MEDIDO EN TERRENO NATURAL POR SECCIÓN).","M3",118.39,null," Pesos   0 0/100 M.N",0]
["A.2","ALBAÑILERÍA",0,0,null,null,{"$f":"SUM(G23:G34)","v":0}]
["DOPI-003","TRAZO Y NIVELACIÓN CON EQUIPO TOPOGRÁFICO DEL TERRENO ESTABLECIENDO EJES Y REFERENCIAS Y BANCOS DE NIVEL, INCLUYE: CRUCETAS, ESTACAS, HILOS, MARCAS Y TRAZOS CON CALHIDRA, MANO DE OBRA, EQUIPO Y HERRAMIENTA.","M2",1106.03,null," Pesos   0 0/100 M.N",0]
["DOPI-004","CIMENTACIÓN A BASE DE SUELO-CEMENTO, A BASE DE MATERIAL DE BANCO, EN PROPORCIÓN DE 1:10, COMPACTADO CON COMPACTADOR DE IMPACTO EN CAPAS NO MAYORES DE 20 CM AL 95% DE SU P.V.S.M, PRUEBA AASHTO ESTÁNDAR, INCLUYE: HERRAMIENTA, SUMINISTRO DE AGUA PARA LOGRAR HUMEDAD ÓPTIMA, MEZCLADO, TENDIDO, EQUIPO, PRUEBAS DE COMPACTACIÓN, EQUIPO Y MANO DE OBRA. (MEDIDO EN TERRENO NATURAL POR SECCIÓN SEGÚN PROYECTOS.) TRABAJOS EN ESPACIO REDUCIDO.","M3",3.7,null," Pesos   0 0/100 M.N",0]
["DOPI-005","RELLENO EN CEPAS O MESETAS CON MATERIAL DE BANCO, COMPACTADO AL 90% ± 2 DE SU P.V.S.M., PRUEBA AASHTO ESTANDAR, CBR DEL 5% MÍNIMO, EN CAPAS NO MAYORES DE 20 CM, INCLUYE: INCORPORACIÓN DE AGUA NECESARIA, MANO DE OBRA, EQUIPO Y HERRAMIENTA, MEDIDO EN TERRENO NATURAL POR SECCIÓN SEGÚN PROYECTOS.","M3",77.349999999999994,null," Pesos   0 0/100 M.N",0]
["DOPI-006","PLANTILLA DE 5 CM DE ESPESOR DE CONCRETO HECHO EN OBRA DE F´C=100 KG/CM2, INCLUYE: PREPARACIÓN DE LA SUPERFICIE, NIVELACIÓN, MAESTREADO, COLADO, MANO DE OBRA, EQUIPO Y HERRAMIENTA.","M2",3.7,null," Pesos   0 0/100 M.N",0]
["DOPI-007","SUMINISTRO E INSTALACIÓN DE ACERO DE REFUERZO CON VARILLA CORRUGADA (GRADO 42 ASTM A-615), DE LIMITE DE AFLUENCIA MINIMA 4200KG/CM2  DE DISTINTOS DIAMETROS (SEGÚN DISEÑO ESTRUCTURAL DEL PROYECTO). INCLUYE: MATERIAL, MANO DE OBRA, EQUIPO, HERRAMIENTA, CORTES, TRASLAPES, HABILITADO, AMARRES Y ACARREO HASTA EL LUGAR.","KG",1431.83,null," Pesos   0 0/100 M.N",0]
["DOPI-008","SUMINISTRO Y COLOCACIÓN DE CONCRETO HECHO EN OBRA F'C=250 KG/CM2 RESISTENCIA NORMAL, INCLUYE: MATERIALES, COLADO, VIBRADO, DESCIMBRA, CURADO,  MANO DE OBRA, EQUIPO Y HERRAMIENTA.","M3 ",23.44,null," Pesos   0 0/100 M.N",0]
["DOPI-009","CIMBRA ACABADO COMÚN EN DALAS Y CASTILLOS A BASE DE MADERA DE PINO DE 2A, PARA CAJA DE VÁLVULAS Y POZOS DE VISITA, INCLUYE: MATERIALES, ACARREOS, CORTES, HABILITADO, CIMBRADO, DESCIMBRA, MANO DE OBRA, EQUIPO Y HERRAMIENTA.","M2",57.66,null," Pesos   0 0/100 M.N",0]
["DOPI-010","SUMINISTRO Y HABILITADO DE ANCLAS DE 3/4” X 0.80 MT, ( 4 PIEZAS ), INCLUYE: ESTRIBOS DE 3/8\" A/C 15 CMS, DOBLEZ, CUERDA, TRAZO, MATERIALES, CORTES, SOLDADURA, FIJACIÓN, MANO DE OBRA, EQUIPO Y HERRAMIENTA.","PZA",18,null," Pesos   0 0/100 M.N",0]
["DOPI-011","SUMINISTRO Y COLOCACIÓN DE CONCRETO HECHO EN OBRA F'C=200 KG/CM2 RESISTENCIA NORMAL PARA FIRME DE 15 CM DE ESPESOR. TERMINADO LAVADO CON GRANO DE MARMOL No2. INCLUYE: MATERIALES, ACARREOS, FRONTERAS, COLADO, VIBRADO, CIMBRADO, DESCIMBRADO, CURADO, SELLADOR ACRILICO, MANO DE OBRA, HERRAMIENTA Y EQUIPO.","M3",10.09,null," Pesos   0 0/100 M.N",0]
["DOPI-012","SUMINISTRO Y COLOCACIÓN DE MALLA ELECTROSOLDADA 6X6-10/10 COMO REFUERZO EN LOSAS DE CONCRETO, INCLUYE: HABILITADO, DESPERDICIOS, TRASLAPES, MATERIAL DE FIJACIÓN, ACARREO DEL MATERIAL AL SITIO DE SU COLOCACIÓN, MANO DE OBRA Y HERRAMIENTA.","M2",67.260000000000005,null," Pesos   0 0/100 M.N",0]
["DOPI-013","CORTE CON DISCO DE DIAMANTE HASTA 1/3 DE ESPESOR DE LA LOSA Y HASTA 3 MM DE ANCHO, INCLUYE: EQUIPO, PREPARACIONES Y MANO DE OBRA.","ML",73.19,null," Pesos   0 0/100 M.N",0]
["DOPI-014","REGISTRO PREFABRICADO DE CONCRETO, DE 0.40 X 0.40 X 0.60, CON TAPA Y MARCO GALVANIZADO, INCLUYE: MATERIAL, MANO DE OBRA HERRAMIENTA Y ACARREOS.","PZA",2,null," Pesos   0 0/100 M.N",0]
["A.3","INSTALACIÓN ELÉCTRICA ",0,0,null,null,{"$f":"SUM(G36:G44)","v":0}]
["DOPI-015","SUMINISTRO Y COLOCACION DE CENTRO DE CARGA SQUARE D QO4, INCLUYE: TABLERO, MATERIALES DE FIJACIÓN, MANO DE OBRA, EQUIPO Y HERRAMIENTA.","PZA",2,null," Pesos   0 0/100 M.N",0]
["DOPI-016","SUMINISTRO E INSTALACIÓN DE  CABLE DE COBRE THW CAL. 8, INCLUYE: MATERIALES, MANO DE OBRA, EQUIPO Y HERRAMIENTA.","M",34.65,null," Pesos   0 0/100 M.N",0]
["DOPI-017","SUMINISTRO Y COLOCACIÓN DE INTERRUPTOR TERMOMAGNETICO DE 1X15-30 AMP. INCLUYE: MATERIAL, MANO DE OBRA Y HERRAMIENTA","PZA",3,null," Pesos   0 0/100 M.N",0]
["DOPI-018","SUMINISTRO E INSTALACIÓN DE CABLE MONOPOLAR DE COBRE AISLAMIENTO THHW, 600V, CAL. 12 AWG MARCA CONDUMEX O SIMILAR, INCLUYE: HERRAMIENTA, MATERIALES, CONEXIÓN,  PRUEBAS, EQUIPO Y MANO DE OBRA.","ML",87.78,null," Pesos   0 0/100 M.N",0]
["DOPI-019","SALIDA ELECTRICA PARA CONTACTO DUPLEX POLARIZADO Y/O APAGADOR SENCILLO, OCULTA, CON TUBERIA DE POLIDUCTO DE DIAMETRO DE HASTA 1\", CABLE VINANEL THW-LS 600 V. A 75° C, 90° C, MARCA CONDUCTORES MONTERREY O SIMILAR (VIAKON-PROTOCOLIZADO), CABLE VINANEL 21 THW-LS 600 V. A 75° C, 90° C, MARCA CONDUMEX (CONDUMEX PROTOCOLIZADO), CALIBRE 10 Y 12, CAJAS DE REGISTRO CUADRADAS, CHALUPAS Y TAPAS DE PVC REFORZADO, CONTACTO Y APAGADOR QUINZIÑO O SIMILAR, TAPA DE ALUMINIO, INCLUYE: HERRAMIENTA, TRAZO, RANURAS, CONEXIÓN A TIERRA, ACCESORIOS, MATERIALES MENORES Y DE CONSUMO, PRUEBAS, DESPERDICIOS Y ACARREO DEL MATERIAL AL SITIO DE SU COLOCACIÓN, A CUALQUIER NIVEL, EQUIPO Y MANO DE OBRA.","SAL ",27,null," Pesos   0 0/100 M.N",0]
["DOPI-020","SUMINISTRO Y COLOCACIÓN DE TUBO CONDUIT PARED GRUESA GALVANIZADO DE 13 MM, INCLUYE: COPLE, MATERIAL, MANO DE OBRA Y HERRAMIENTA.","ML",87.78,null," Pesos   0 0/100 M.N",0]
["DOPI-021","SUMINISTRO Y COLOCACION DE CAJA DE REGISTRO CUADRADA 4\"X4\", PARA ALIMENTACION DE LUMINARIAS, APAGADORES Y CONTACTOS.  INCLUYE:  FIJACIONES SOBRE MURO, LOSA O ESTRUCTURA DE ANDAMIOS, A CUALQUIER ALTURA, CUALQUIER DISTANCIA, ACARREOS, CORTES, FIJACIONES, DESPERDICIOS, MATERIALES, MANO DE OBRA, EQUIPO Y HERRAMIENTA.","PZA",27,null," Pesos   0 0/100 M.N",0]
["DOPI-022","SUMINISTRO E INSTALACIÓN DE LUMINARIA LED MEGA-LINE INTERCONECTABLE DE EMPOTRAR EN TECHO , 30W, MARCA ILLUX, MODELO: TLC-1530 O SIMILAR, A CUALQUIER NIVEL Y/O ALTURA. INCLUYE: ACARREO, ELEVACIÓN, ANDAMIOS, FIJACIÓN, CONEXIONES, TAQUETES, TORNILLERIA, ACCESORIOS, RECORTES, MATERIALES, MANO DE OBRA, EQUIPO Y HERRAMIENTA.","PZA",18,null," Pesos   0 0/100 M.N",0]
["DOPI-023","SUMINISTRO E INSTALACION DE LAMPARA UFO LED TIPO CAMPANA DE 150 W, LUZ DE DIA, PROTECCION IP65, TIPO INDUSTRIAL, RESISTENTE A POLVO Y HUMEDAD, MODELO REGOR II, MARCA TECNOLITE O SIMILAR, CUALQUIER ALTURA,  INCLUYE: ACARREO, ELEVACION, ANDAMIOS, FIJACION, CONEXIONES, TAQUETES Y TORNILLERIA, ACCESORIOS, RECORTES, MATERIALES, MANO DE OBRA, EQUIPO Y HERRAMIENTA Y TODO LO NECESARIO PARA SU CORRECTA EJECUCION.","PZA",8,null," Pesos   0 0/100 M.N",0]
["A.4","ESTRUCTURA Y CUBIERTAS",null,0,null,null,{"$f":"SUM(G46:G50)","v":0}]
["DOPI-024","SUMINISTRO, HABILITADO Y COLOCACIÓN DE TUBO ESTRUCTURAL, RECTO, EN BASE A PROYECTO, INCLUYE: HERRAMIENTA, INGENIERÍA DE TALLER, CORTES, BISELADOS, SOLDADURA, NIVELACIÓN, ALINEAMIENTO Y PLOMEADO, ANDAMIOS, FONDO PRIMARIO ALQUIDÁLICO ANTICORROSIVO, GRÚA ARTICULADA, CARGA, TRASLADO, DESPERDICIOS, EQUIPO Y MANO DE OBRA.","KG",26273.73,null," Pesos   0 0/100 M.N",0]
["DOPI-025","SUMINISTRO, HABILITADO Y COLOCACIÓN DE TUBO ESTRUCTURAL, ROLADO, EN BASE A PROYECTO, INCLUYE: HERRAMIENTA, INGENIERÍA DE TALLER, CORTES, BISELADOS, SOLDADURA, NIVELACIÓN, ALINEAMIENTO Y PLOMEADO, ANDAMIOS, FONDO PRIMARIO ALQUIDÁLICO ANTICORROSIVO, GRÚA ARTICULADA, CARGA, TRASLADO, DESPERDICIOS, EQUIPO Y MANO DE OBRA.","KG",19985.240000000002,null," Pesos   0 0/100 M.N",0]
["DOPI-026","SUMINISTRO Y APLICACIÓN DE PINTURA DE ESMALTE 100 MATE COMEX O SIMILAR, COLOR BLANCO, EN ESTRUCTURAS METÁLICAS, INCLUYE: APLICACIÓN DE RECUBRIMIENTO A 4 MILÉSIMAS DE ESPESOR, MATERIALES, MANO DE OBRA, EQUIPO Y HERRAMIENTA.","KG",46258.97,null," Pesos   0 0/100 M.N",0]
["DOPI-027","SUMINISTRO Y COLOCACION DE GROUT MORTERO AUTONIVELANTE PARA ANCLAJES, RELLENOS Y NIVELACIÓN. INCLUYE: MATERIALES,  MANO DE OBRA Y HERRAMIENTAS.","M3",0.11,null," Pesos   0 0/100 M.N",0]
["DOPI-028","SUMINISTRO, CONFECCIÓN E INSTALACIÓN DE MEMBRANA PRETENSADA DE FÁBRICA (PRECONTRAINT), MODELO FLEXLIGHT ADVANCED 902 S2 O SIMILAR EN CALIDAD, ESFUERZO MÁXIMO DE 409 KG/M, RESISTENCIA DE 1,734 KG/M, FACTOR DE SEGURIDAD MÍNIMO DE 4.24, COMPUESTA DE TEJIDO DTEX Y MICROFILAMENTOS REVESTIDOS DE FLORURO DE POLIVINILIDENO PVC Y RECUBIERTO CON TRATAMIENTO DE PVDF PLASTIFICADO, CUMPLE CON ISO 9001, ISO 14001, INCLUYE: CARTA GARANTÍA DEL PROVEEDOR DE 15 AÑOS, HERRAMIENTA, MATERIALES, PATRONAJE, ACARREOS, ELEVACIONES, CORTES, DESPERDICIOS, SISTEMA DE FIJACIÓN CON CABLE CATENARIO DE 1/2\" TIPO BARRACUDA EIPS 6X19 CON ALMA DE ACERO GALVANIZADO, TERMINAL VACIADA ABIERTA EN UN EXTREMO Y TERMINAL VACIADA CERRADA EN OTRO, AMBAS DE ACERO FORJADO GALVANIZADO EN CALIENTE, VACIADAS CON RESINA Y CUMPLA NORMA ASTM D695, TENSOR QUIJADA - QUIJADA DE 3/4\" X 6\" EN UN EXTREMO, DE ACERO FORJADO GALVANIZADO EN CALIENTE CON ROSCA UNC., EQUIPO Y MANO DE OBRA CALIFICADA.","M2",1153.3499999999999,null," Pesos   0 0/100 M.N",0]
["A.5","ACABADOS",null,0,null,null,{"$f":"SUM(G52:G53)","v":0}]
["DOPI-029","SUMINISTRO Y APLICACIÓN DE LÍNEAS DELIMITADORAS, CON PINTURA BASE ACEITE DE SECADO RÁPIDO, MATE MARCA COMEX O SIMILAR, DE 10 CM DE ANCHO, ACABADO MATE SECADO RÁPIDO, INCLUYE: HERRAMIENTA, LIMPIEZA Y PREPARACIÓN DE LA SUPERFICIE, MATERIALES, EQUIPO Y MANO DE OBRA.","ML",468.47,null," Pesos   0 0/100 M.N",0]
["DOPI-030","SUMINISTRO Y APLICACIÓN DE PINTURA BASE ACEITE DE SECADO RÁPIDO, MATE MARCA COMEX O SIMILAR, ACABADO MATE SECADO RÁPIDO, INCLUYE: HERRAMIENTA, LIMPIEZA Y PREPARACIÓN DE LA SUPERFICIE, MATERIALES, EQUIPO Y MANO DE OBRA.","M2",851.14,null," Pesos   0 0/100 M.N",0]
["A.6","LIMPIEZA",null,0,null,null,{"$f":"SUM(G55:G57)","v":0}]
["DOPI-031","LIMPIEZA GRUESA DE OBRA, INCLUYE: ACARREO A BANCO DE OBRA, MANO DE OBRA, EQUIPO Y HERRAMIENTA.","M2",1106.03,null," Pesos   0 0/100 M.N",0]
["DOPI-032","CARGA Y ACARREO EN CARRETILLA A 40.00 MT. DE DISTANCIA DE MATERIAL PRODUCTO DE LA EXCAVACION Y/O DEMOLICION.  INCLUYE: HERRAMIENTA MENOR Y MANO DE OBRA. VOLUMEN MEDIDO EN SECCIONES.","M3",142.07,null," Pesos   0 0/100 M.N",0]
["DOPI-033","CARGA MECANICA Y RETIRO DE ESCOMBRO A FUERA DE LA OBRA EN CAMION DE VOLTEO AL LUGAR INDICADO POR SUPERVISION, INCLUYE: MANO DE OBRA, EQUIPO Y HERRAMIENTA.","M3",142.07,null," Pesos   0 0/100 M.N",0]
["B","LONARIA EN AL AREA DE ESPERA",null,0,null,null,{"$f":"G59+G62+G76+G82","v":0}]
["B.1","DEMOLICIÓN ",null,0,null,null,{"$f":"SUM(G60:G61)","v":0}]
["DOPI-034","DEMOLICIÓN DE CONCRETO SIMPLE EN BANQUETAS, POR MEDIOS MECÁNICOS, INCLUYE: ACARREO DEL MATERIAL A BANCO DE OBRA PARA SU POSTERIOR RETIRO Y LIMPIEZA DEL ÁREA DE LOS TRABAJOS, MANO DE OBRA, EQUIPO Y HERRAMIENTA.","M3",2.57,null," Pesos   0 0/100 M.N",0]
["DOPI-035","EXCAVACIÓN POR MEDIOS MECÁNICOS EN MATERIAL TIPO II, DE 0.00 A -2.00 M DE PROFUNDIDAD, INCLUYE: ACARREO DEL MATERIAL A BANCO DE OBRA PARA SU POSTERIOR RETIRO, MANO DE OBRA, EQUIPO Y HERRAMIENTA. (MEDIDO EN TERRENO NATURAL POR SECCIÓN).","M3",41.9,null," Pesos   0 0/100 M.N",0]
["B.2","ALBAÑILERÍA",null,0,null,null,{"$f":"SUM(G63:G75)","v":0}]
["DOPI-036","TRAZO Y NIVELACIÓN CON EQUIPO TOPOGRÁFICO DEL TERRENO ESTABLECIENDO EJES Y REFERENCIAS Y BANCOS DE NIVEL, INCLUYE: CRUCETAS, ESTACAS, HILOS, MARCAS Y TRAZOS CON CALHIDRA, MANO DE OBRA, EQUIPO Y HERRAMIENTA.","M2",95.29,null," Pesos   0 0/100 M.N",0]
["DOPI-037","CIMENTACIÓN A BASE DE SUELO-CEMENTO, A BASE DE MATERIAL DE BANCO, EN PROPORCIÓN DE 1:10, COMPACTADO CON COMPACTADOR DE IMPACTO EN CAPAS NO MAYORES DE 20 CM AL 95% DE SU P.V.S.M, PRUEBA AASHTO ESTÁNDAR, INCLUYE: HERRAMIENTA, SUMINISTRO DE AGUA PARA LOGRAR HUMEDAD ÓPTIMA, MEZCLADO, TENDIDO, EQUIPO, PRUEBAS DE COMPACTACIÓN, EQUIPO Y MANO DE OBRA. (MEDIDO EN TERRENO NATURAL POR SECCIÓN SEGÚN PROYECTOS.) TRABAJOS EN ESPACIO REDUCIDO.","M3",10.199999999999999,null," Pesos   0 0/100 M.N",0]
["DOPI-038","RELLENO EN CEPAS O MESETAS CON MATERIAL DE BANCO, COMPACTADO AL 90% ± 2 DE SU P.V.S.M., PRUEBA AASHTO ESTANDAR, CBR DEL 5% MÍNIMO, EN CAPAS NO MAYORES DE 20 CM, INCLUYE: INCORPORACIÓN DE AGUA NECESARIA, MANO DE OBRA, EQUIPO Y HERRAMIENTA, MEDIDO EN TERRENO NATURAL POR SECCIÓN SEGÚN PROYECTOS.","M3",6.22,null," Pesos   0 0/100 M.N",0]
["DOPI-039","PLANTILLA DE 5 CM DE ESPESOR DE CONCRETO HECHO EN OBRA DE F´C=100 KG/CM2, INCLUYE: PREPARACIÓN DE LA SUPERFICIE, NIVELACIÓN, MAESTREADO, COLADO, MANO DE OBRA, EQUIPO Y HERRAMIENTA.","M2",6.66,null," Pesos   0 0/100 M.N",0]
["DOPI-040","SUMINISTRO E INSTALACIÓN DE ACERO DE REFUERZO CON VARILLA CORRUGADA (GRADO 42 ASTM A-615), DE LIMITE DE AFLUENCIA MINIMA 4200KG/CM2  DE DISTINTOS DIAMETROS (SEGÚN DISEÑO ESTRUCTURAL DEL PROYECTO). INCLUYE: MATERIAL, MANO DE OBRA, EQUIPO, HERRAMIENTA, CORTES, TRASLAPES, HABILITADO, AMARRES Y ACARREO HASTA EL LUGAR.","KG",122.68,null," Pesos   0 0/100 M.N",0]
["DOPI-041","SUMINISTRO Y COLOCACIÓN DE CONCRETO HECHO EN OBRA F'C=250 KG/CM2 RESISTENCIA NORMAL, INCLUYE: MATERIALES, COLADO, VIBRADO, DESCIMBRA, CURADO,  MANO DE OBRA, EQUIPO Y HERRAMIENTA.","M3 ",6.66,null," Pesos   0 0/100 M.N",0]
["DOPI-042","CIMBRA ACABADO COMÚN EN DALAS Y CASTILLOS A BASE DE MADERA DE PINO DE 2A, PARA CAJA DE VÁLVULAS Y POZOS DE VISITA, INCLUYE: MATERIALES, ACARREOS, CORTES, HABILITADO, CIMBRADO, DESCIMBRA, MANO DE OBRA, EQUIPO Y HERRAMIENTA.","M2",14.78,null," Pesos   0 0/100 M.N",0]
["DOPI-043","SUMINISTRO Y HABILITADO DE ANCLAS DE 3/4” X 0.80 MT, ( 4 PIEZAS ), INCLUYE: ESTRIBOS DE 3/8\" A/C 15 CMS, DOBLEZ, CUERDA, TRAZO, MATERIALES, CORTES, SOLDADURA, FIJACIÓN, MANO DE OBRA, EQUIPO Y HERRAMIENTA.","PZA",5,null," Pesos   0 0/100 M.N",0]
["DOPI-044","SUMINISTRO Y COLOCACIÓN DE CONCRETO HECHO EN OBRA F'C=200 KG/CM2 RESISTENCIA NORMAL PARA FIRME DE 15 CM DE ESPESOR. TERMINADO LAVADO CON GRANO DE MARMOL No2. INCLUYE: MATERIALES, ACARREOS, FRONTERAS, COLADO, VIBRADO, CIMBRADO, DESCIMBRADO, CURADO, SELLADOR ACRILICO, MANO DE OBRA, HERRAMIENTA Y EQUIPO.","M3",9.5299999999999994,null," Pesos   0 0/100 M.N",0]
["DOPI-045","SUMINISTRO Y COLOCACIÓN DE MALLA ELECTROSOLDADA 6X6-10/10 COMO REFUERZO EN LOSAS DE CONCRETO, INCLUYE: HABILITADO, DESPERDICIOS, TRASLAPES, MATERIAL DE FIJACIÓN, ACARREO DEL MATERIAL AL SITIO DE SU COLOCACIÓN, MANO DE OBRA Y HERRAMIENTA.","M2",95.29,null," Pesos   0 0/100 M.N",0]
["DOPI-046","CORTE CON DISCO DE DIAMANTE HASTA 1/3 DE ESPESOR DE LA LOSA Y HASTA 3 MM DE ANCHO, INCLUYE: EQUIPO, PREPARACIONES Y MANO DE OBRA.","ML",61.22,null," Pesos   0 0/100 M.N",0]
["DOPI-047","RENIVELACIÓN DE REGISTRO DE 0.40X0.40 MTS APROX. INCLUYE: HASTA 2 HILADAS DE LADRILLO O BLOCK, HASTA LA ALTURA DE PISO TERMINADO CON PENDIENTE DE RAMPA, APLANADO CON MEZCLA CEMENTO-ARENA DE RIO, SUMINISTRO Y COLOCACIÓN DE MARCO Y CONTRA MARCO DE ANGULO 2\"X 3/16\", COLADO DE TAPA CON CONCRETO F'C=150 KG/CM2, HECHO EN OBRA,  NIVELACIÓN, RESANE, MATERIALES, MANO DE OBRA, EQUIPO Y HERRAMIENTA.","PZA",2,null," Pesos   0 0/100 M.N",0]
["DOPI-048","RENIVELACIÓN DE REGISTRO DE TAPA CIRCULAR DE 0.85 MTS DE DIAMETRO APROX. INCLUYE: HASTA 2 HILADAS DE LADRILLO O BLOCK HASTA LA ALTURA DE PISO TERMINADO CON PENDIENTE DE RAMPA, APLANADO CON MEZCLA CEMENTO-ARENA DE RIO, SUMINISTRO Y COLOCACIÓN DE MARCO Y CONTRA MARCO DE ANGULO 2\"X 3/16\" COLADO DE TAPA CON CONCRETO F'C=150 KG/CM2, HECHO EN OBRA, NIVELACIÓN, RESANE, MATERIALES, MANO DE OBRA, EQUIPO Y HERRAMIENTA.","PZA",2,null," Pesos   0 0/100 M.N",0]
["B.3","ESTRUCTURA Y CUBIERTAS",null,0,null,null,{"$f":"SUM(G77:G81)","v":0}]
["DOPI-049","SUMINISTRO, HABILITADO Y COLOCACIÓN DE TUBO ESTRUCTURAL, RECTO, EN BASE A PROYECTO, INCLUYE: HERRAMIENTA, INGENIERÍA DE TALLER, CORTES, BISELADOS, SOLDADURA, NIVELACIÓN, ALINEAMIENTO Y PLOMEADO, ANDAMIOS, FONDO PRIMARIO ALQUIDÁLICO ANTICORROSIVO, GRÚA ARTICULADA, CARGA, TRASLADO, DESPERDICIOS, EQUIPO Y MANO DE OBRA.","KG",1931.1,null," Pesos   0 0/100 M.N",0]
["DOPI-050","SUMINISTRO, HABILITADO Y COLOCACIÓN DE TUBO ESTRUCTURAL, ROLADO, EN BASE A PROYECTO, INCLUYE: HERRAMIENTA, INGENIERÍA DE TALLER, CORTES, BISELADOS, SOLDADURA, NIVELACIÓN, ALINEAMIENTO Y PLOMEADO, ANDAMIOS, FONDO PRIMARIO ALQUIDÁLICO ANTICORROSIVO, GRÚA ARTICULADA, CARGA, TRASLADO, DESPERDICIOS, EQUIPO Y MANO DE OBRA.","KG",1192.03,null," Pesos   0 0/100 M.N",0]
["DOPI-051","SUMINISTRO Y APLICACIÓN DE PINTURA DE ESMALTE 100 MATE COMEX O SIMILAR, COLOR BLANCO, EN ESTRUCTURAS METÁLICAS, INCLUYE: APLICACIÓN DE RECUBRIMIENTO A 4 MILÉSIMAS DE ESPESOR, MATERIALES, MANO DE OBRA, EQUIPO Y HERRAMIENTA.","KG",3123.13,null," Pesos   0 0/100 M.N",0]
["DOPI-052","SUMINISTRO Y COLOCACION DE GROUT MORTERO AUTONIVELANTE PARA ANCLAJES, RELLENOS Y NIVELACIÓN. INCLUYE: MATERIALES,  MANO DE OBRA Y HERRAMIENTAS.","M3",0.01,null," Pesos   0 0/100 M.N",0]
["DOPI-053","SUMINISTRO, CONFECCIÓN E INSTALACIÓN DE MEMBRANA PRETENSADA DE FÁBRICA (PRECONTRAINT), MODELO FLEXLIGHT ADVANCED 902 S2 O SIMILAR EN CALIDAD, ESFUERZO MÁXIMO DE 409 KG/M, RESISTENCIA DE 1,734 KG/M, FACTOR DE SEGURIDAD MÍNIMO DE 4.24, COMPUESTA DE TEJIDO DTEX Y MICROFILAMENTOS REVESTIDOS DE FLORURO DE POLIVINILIDENO PVC Y RECUBIERTO CON TRATAMIENTO DE PVDF PLASTIFICADO, CUMPLE CON ISO 9001, ISO 14001, INCLUYE: CARTA GARANTÍA DEL PROVEEDOR DE 15 AÑOS, HERRAMIENTA, MATERIALES, PATRONAJE, ACARREOS, ELEVACIONES, CORTES, DESPERDICIOS, SISTEMA DE FIJACIÓN CON CABLE CATENARIO DE 1/2\" TIPO BARRACUDA EIPS 6X19 CON ALMA DE ACERO GALVANIZADO, TERMINAL VACIADA ABIERTA EN UN EXTREMO Y TERMINAL VACIADA CERRADA EN OTRO, AMBAS DE ACERO FORJADO GALVANIZADO EN CALIENTE, VACIADAS CON RESINA Y CUMPLA NORMA ASTM D695, TENSOR QUIJADA - QUIJADA DE 3/4\" X 6\" EN UN EXTREMO, DE ACERO FORJADO GALVANIZADO EN CALIENTE CON ROSCA UNC., EQUIPO Y MANO DE OBRA CALIFICADA.","M2",95.29,null," Pesos   0 0/100 M.N",0]
["B.4","LIMPIEZA",null,0,null,null,{"$f":"SUM(G83:G85)","v":0}]
["DOPI-054","LIMPIEZA GRUESA DE OBRA, INCLUYE: ACARREO A BANCO DE OBRA, MANO DE OBRA, EQUIPO Y HERRAMIENTA.","M2",95.29,null," Pesos   0 0/100 M.N",0]
["DOPI-055","CARGA Y ACARREO EN CARRETILLA A 40.00 MT. DE DISTANCIA DE MATERIAL PRODUCTO DE LA EXCAVACION Y/O DEMOLICION.  INCLUYE: HERRAMIENTA MENOR Y MANO DE OBRA. VOLUMEN MEDIDO EN SECCIONES.","M3",41.9,null,{"$f":"Enletras(E84)","v":" Pesos   0 0/100 M.N"},{"$f":"ROUND((E84*D84),2)","v":0}]
["DOPI-056","CARGA MECANICA Y RETIRO DE ESCOMBRO A FUERA DE LA OBRA EN CAMION DE VOLTEO AL LUGAR INDICADO POR SUPERVISION, INCLUYE: MANO DE OBRA, EQUIPO Y HERRAMIENTA.","M3",41.9,null," Pesos   0 0/100 M.N",0]
[]
[]
[]
[]
[]
[]
[]
[null,"RESUMEN DE PARTIDAS"]
[null,{"$f":"B7","v":"Estructura con lonaria en el Centro de Autismo ubicado en Av. Laureles No. 777, colonia Estatuto Jurídico Fovissste y obras complementarias, municipio de Zapopan, Jalisco."}]
[]
[]
[{"$f":"A12","v":0},{"$f":"B12","v":0},null,null,null,null,{"$f":"G12","v":0}]
["A",{"$f":"VLOOKUP(A98,$A$18:$G$83,2,FALSE)","v":"LONARIA EN AL AREA DE CANCHAS"},null,null,null,null,{"$f":"VLOOKUP(A98,A18:G89,7,)","v":0}]
["A.1",{"$f":"VLOOKUP(A99,$A$19:$G$89,2,FALSE)","v":"DEMOLICIÓN "},null,null,null,null,{"$f":"VLOOKUP(A99,A19:G89,7,FALSE)","v":0}]
["A.2","ALBAÑILERÍA",null,null,null,null,{"$f":"VLOOKUP(A100,A20:G89,7,FALSE)","v":0}]
["A.3","INSTALACIÓN ELÉCTRICA ",null,null,null,null,{"$f":"VLOOKUP(A101,A22:G89,7,FALSE)","v":0}]
["A.4","ESTRUCTURA Y CUBIERTAS",null,null,null,null,{"$f":"VLOOKUP(A102,A22:G93,7,FALSE)","v":0}]
["A.5","ACABADOS",null,null,null,null,{"$f":"VLOOKUP(A103,A22:G94,7,FALSE)","v":0}]
["A.6","LIMPIEZA",null,null,null,null,{"$f":"VLOOKUP(A104,A23:G95,7,FALSE)","v":0}]
["B",{"$f":"VLOOKUP(A105,$A$18:$G$83,2,FALSE)","v":"LONARIA EN AL AREA DE ESPERA"},null,null,null,null,{"$f":"VLOOKUP(A105,A25:G96,7,)","v":0}]
["B.1",{"$f":"VLOOKUP(A106,$A$19:$G$89,2,FALSE)","v":"DEMOLICIÓN "},null,null,null,null,{"$f":"VLOOKUP(A106,A29:G96,7,FALSE)","v":0}]
["B.2",{"$f":"VLOOKUP(A107,$A$19:$G$89,2,FALSE)","v":"ALBAÑILERÍA"},null,null,null,null,{"$f":"VLOOKUP(A107,A30:G96,7,FALSE)","v":0}]
["B.3",{"$f":"VLOOKUP(A108,$A$19:$G$89,2,FALSE)","v":"ESTRUCTURA Y CUBIERTAS"},null,null,null,null,{"$f":"VLOOKUP(A108,A32:G96,7,FALSE)","v":0}]
["B.4",{"$f":"VLOOKUP(A109,$A$19:$G$89,2,FALSE)","v":"LIMPIEZA"},null,null,null,null,{"$f":"VLOOKUP(A109,A33:G96,7,FALSE)","v":0}]
[]
[]
[]
[]
[]
[]
[]
[]
[]
["IMPORTE TOTAL CON LETRA",null,null,null,null,"SUBTOTAL M. N.",{"$f":"G98+G105","v":0}]
[{"$f":"Enletras(G121)","v":" Pesos   0 0/100 M.N"},null,null,null,null,"IVA M. N.",{"$f":"G119*0.16","v":0}]
[null,null,null,null,null,"TOTAL M. N.",{"$f":"G119+G120","v":0}]